fUST/lending_fUST_20250615
["ID","MTS","AMOUNT","RATE_DAILY","PERIOD"]
[365887906,1749973833070,-311.96095729,0.00021301,2]
[365887907,1749973833080,-299.33476204,0.00021454,2]
[365887908,1749973833090,-299.33476204,0.00021803,2]
[365887909,1749973833099,-2157.10173844,0.000219,6]
[365887910,1749973833109,-738.43,0.000219,2]
[365887911,1749973833120,-311.96095729,0.00021903,2]
[365887912,1749973833129,-572.84,0.00021907,3]
[365887913,1749973833139,-626.73078451,0.00021916,2]
[365887914,1749973833148,-238.52,0.00021916,2]
[365887915,1749973833158,-500.0,0.00021916,2]
[365887916,1749973833171,-500.0,0.00021916,2]
[365887917,1749973833181,-500.0,0.00021916,2]
[365887918,1749973833191,-500.0,0.00021916,2]
[365887919,1749973833201,-423.28597389,0.00021917,4]
[365887920,1749973833212,-460.0,0.00021917,4]
[365887921,1749973833222,-160.46450461,0.00021917,4]
[365887922,1749973833232,-460.0,0.00021917,4]
[365887923,1749973833243,-460.0,0.00021917,4]
[365887924,1749973833254,-575.96798661,0.00021917,4]
[365887925,1749973833264,-380.57585378,0.00021917,4]
[365887926,1749973833273,-593.73,0.00021917,4]
[365887927,1749973833283,-460.0,0.00021917,4]
[365887928,1749973833293,-491.34,0.00021917,4]
[365887929,1749973833303,-460.0,0.00021917,4]
[365887930,1749973833313,-791.29,0.00021917,4]
[365887931,1749973833325,-460.0,0.00021917,4]
[365887932,1749973833334,-460.0,0.00021917,4]
[365887933,1749973833344,-460.0,0.00021917,4]
[365887934,1749973833354,-495.04161877,0.00021917,4]
[365887935,1749973833363,-444.58906029,0.00021917,4]
[365887936,1749973833373,-460.0,0.00021917,4]
[365887937,1749973833383,-460.0,0.00021917,4]
[365887938,1749973833393,-460.0,0.00021917,4]
[365887939,1749973833403,-585.89,0.00021917,4]
[365887940,1749973833413,-460.0,0.00021917,4]
[365887941,1749973833423,-460.0,0.00021917,4]
[365887942,1749973833433,-460.0,0.00021917,4]
[365887943,1749973833443,-460.0,0.00021917,4]
[365887944,1749973833453,-460.0,0.00021917,4]
[365887945,1749973833463,-460.0,0.00021917,2]
[365887946,1749973833472,-460.0,0.00021917,4]
[365887947,1749973833482,-366.78305919,0.00021917,4]
[365887948,1749973833491,-460.0,0.00021917,4]
[365887949,1749973833500,-460.0,0.00021917,4]
[365887950,1749973833510,-460.0,0.00021917,2]
[365887951,1749973833519,-460.0,0.00021917,4]
[365887952,1749973833528,-460.0,0.00021917,4]
[365887953,1749973833538,-522.62763877,0.00021917,4]
[365887954,1749973833547,-400.0,0.00021917,4]
[365887955,1749973833556,-460.0,0.00021917,4]
[365887956,1749973833566,-460.0,0.00021917,4]
[365887957,1749973833575,-460.0,0.00021917,4]
[365887958,1749973833584,-390.0,0.00021917,4]
[365887959,1749973833593,-420.0,0.00021917,4]
[365887960,1749973833602,-460.0,0.00021917,4]
[365887961,1749973833611,-460.0,0.00021917,4]
[365887962,1749973833623,-460.0,0.00021917,4]
[365887963,1749973833633,-2393.64,0.00021917,4]
[365887964,1749973833643,-551.73,0.00021917,4]
[365887965,1749973833653,-460.0,0.00021917,4]
[365887966,1749973833664,-530.26,0.00021917,4]
[365887967,1749973833673,-564.20076393,0.00021917,4]
[365887968,1749973833683,-630.87,0.00021917,4]
[365887969,1749973833692,-460.0,0.00021917,4]
[365887970,1749973833701,-460.0,0.00021917,4]
[365887971,1749973833711,-405.59360489,0.00021917,4]
[365887972,1749973833721,-460.0,0.00021917,4]
[365887973,1749973833730,-420.0,0.00021917,4]
[365887974,1749973833740,-399.56559776,0.00021917,4]
[365887975,1749973833749,-235.29303443,0.00021917,4]
[365887976,1749973833759,-3017.86,0.00021917,4]
[365887977,1749973833768,-390.0,0.00021917,4]
[365887978,1749973833777,-460.0,0.00021917,4]
[365887979,1749973833787,-421.62330177,0.00021917,4]
[365887980,1749973833801,-260.58669823,0.00021917,4]
[365887981,1749973833810,-340.04325517,0.00021917,4]
[365887982,1749973833820,-460.0,0.00021917,4]
[365887983,1749973833830,-460.0,0.00021917,4]
[365887984,1749973833840,-700.15,0.00021917,4]
[365887985,1749973833850,-626.93,0.00021917,4]
[365887986,1749973833863,-2703.63,0.00021917,4]
[365887987,1749973833873,-460.0,0.00021917,4]
[365887988,1749973833883,-366.9651575,0.00021917,4]
[365887989,1749973833893,-300.02909544,0.00021917,4]
[365887991,1749973838680,-500.0,0.00020797,2]
[365887992,1749973838690,-500.0,0.00020797,2]
[365887993,1749973838700,-483.74199544,0.00020797,2]
[365887994,1749973838710,-536.81770472,0.00020797,2]
[365887995,1749973838719,-500.0,0.00020797,2]
[365887996,1749973838729,-382.10950338,0.00020797,2]
[365887997,1749973838739,-500.0,0.00020797,2]
[365887998,1749973838749,-297.93124611,0.00020797,2]
[365887999,1749973838759,-424.2553019,0.00020797,2]
[365888000,1749973838769,-500.0,0.00020797,2]
[365888001,1749973838779,-500.0,0.00020797,2]
[365888002,1749973838789,-500.0,0.00020797,2]
[365888003,1749973838800,-500.0,0.00020797,2]
[365888004,1749973838809,-500.0,0.00020797,2]
[365888005,1749973838819,-500.0,0.00020797,2]
[365888006,1749973838829,-469.55068124,0.00020797,2]
[365888007,1749973838839,-500.0,0.00020797,2]
[365888008,1749973838848,-500.0,0.00020797,2]
[365888009,1749973838858,-614.38845414,0.00020797,2]
[365888010,1749973838867,-500.0,0.00020797,2]
[365888011,1749973838877,-501.48187509,0.00020797,2]
[365888012,1749973838887,-500.0,0.00020797,2]
[365888013,1749973838897,-501.98686104,0.00020797,2]
[365888014,1749973838907,-328.6772374,0.00020797,2]
[365888015,1749973838917,-500.0,0.00020797,2]
[365888016,1749973838927,-500.0,0.00020797,2]
[365888017,1749973838937,-642.65194799,0.00020797,2]
[365888018,1749973838947,-500.0,0.00020797,2]
[365888019,1749973838957,-500.0,0.00020797,2]
[365888020,1749973838967,-500.0,0.00020797,2]
[365888021,1749973838977,-500.0,0.00020797,2]
[365888022,1749973838987,-155.0,0.00021911,2]
[365888023,1749973838997,-500.0,0.00021916,2]
[365888024,1749973839007,-500.0,0.00021916,2]
[365888025,1749973839016,-500.0,0.00021916,2]
[365888026,1749973839026,-500.0,0.00021916,2]
[365888027,1749973839036,-500.0,0.00021916,2]
[365888028,1749973839046,-478.28888159,0.00021916,2]
[365888029,1749973839055,-500.0,0.00021916,2]
[365888030,1749973839065,-500.0,0.00021916,2]
[365888031,1749973839075,-500.0,0.00021916,2]
[365888032,1749973839085,-3103.57090456,0.00021917,4]
[365888033,1749973839095,-460.0,0.00021917,4]
[365888034,1749973839104,-460.0,0.00021917,4]
[365888035,1749973839114,-460.0,0.00021917,4]
[365888036,1749973839124,-460.0,0.00021917,4]
[365888037,1749973839134,-460.0,0.00021917,4]
[365888038,1749973839143,-460.0,0.00021917,4]
[365888039,1749973839154,-460.0,0.00021917,4]
[365888040,1749973839163,-460.0,0.00021917,4]
[365888041,1749973839173,-1228.04,0.00021917,4]
[365888042,1749973839183,-460.0,0.00021917,4]
[365888043,1749973839193,-410.17347945,0.00021917,4]
[365888044,1749973839203,-460.0,0.00021917,4]
[365888045,1749973839214,-1587.04,0.00021917,4]
[365888046,1749973839223,-460.0,0.00021917,4]
[365888047,1749973839232,-460.0,0.00021917,4]
[365888048,1749973839242,-850.24,0.00021917,4]
[365888049,1749973839256,-478.87,0.00021917,4]
[365888050,1749973839266,-440.0,0.00021917,4]
[365888051,1749973839275,-400.0,0.00021917,4]
[365888052,1749973839287,-551.92213699,0.00021917,4]
[365888053,1749973839297,-581.61,0.00021917,4]
[365888054,1749973839307,-460.0,0.00021917,4]
[365888055,1749973839318,-460.0,0.00021917,4]
[365888056,1749973839328,-460.0,0.00021917,4]
[365888057,1749973839338,-460.0,0.00021917,4]
[365888058,1749973839348,-1462.49,0.00021917,4]
[365888059,1749973839527,-460.32,0.00021917,4]
[365888060,1749973839537,-460.0,0.00021917,4]
[365888061,1749973839547,-460.0,0.00021917,4]
[365888062,1749973839556,-460.0,0.00021917,4]
[365888063,1749973839566,-460.0,0.00021917,4]
[365888064,1749973839576,-408.01880777,0.00021917,4]
[365888065,1749973839585,-460.0,0.00021917,4]
[365888066,1749973839596,-460.0,0.00021917,4]
[365888067,1749973839606,-460.0,0.00021917,4]
[365888068,1749973839616,-460.0,0.00021917,4]
[365888069,1749973839626,-460.0,0.00021917,4]
[365888070,1749973839636,-460.0,0.00021917,4]
[365888071,1749973839649,-460.0,0.00021917,4]
[365888072,1749973839660,-1747.27,0.00021917,4]
[365888073,1749973839670,-460.0,0.00021917,4]
[365888074,1749973839679,-460.0,0.00021917,4]
[365888075,1749973839689,-476.89,0.00021917,4]
[365888076,1749973839698,-330.45499987,0.00021917,4]
[365888077,1749973839707,-460.0,0.00021917,4]
[365888078,1749973839717,-460.0,0.00021917,4]
[365888079,1749973839726,-460.0,0.00021917,4]
[365888080,1749973839736,-1821.56,0.00021917,4]
[365888081,1749973839745,-460.0,0.00021917,4]
[365888082,1749973839754,-460.0,0.00021917,4]
[365888083,1749973839763,-2297.17,0.00021917,4]
[365888084,1749973839773,-460.0,0.00021917,4]
[365888085,1749973839782,-739.49,0.00021917,4]
[365888086,1749973839792,-460.0,0.00021917,4]
[365888087,1749973839801,-434.90047896,0.00021917,4]
[365888088,1749973839810,-460.0,0.00021917,4]
[365888089,1749973839820,-460.0,0.00021917,4]
[365888090,1749973839830,-460.0,0.00021917,4]
[365888091,1749973839839,-460.0,0.00021917,4]
[365888092,1749973839849,-460.0,0.00021917,4]
[365888093,1749973839858,-460.0,0.00021917,4]
[365888094,1749973839867,-3588.19,0.00021917,4]
[365888095,1749973839876,-400.0,0.00021917,4]
[365888096,1749973839886,-440.0,0.00021917,4]
[365888097,1749973839896,-460.0,0.00021917,4]
[365888098,1749973839906,-240.0,0.00021917,4]
[365888099,1749973839915,-2293.8,0.00021917,4]
[365888101,1749973839925,-460.0,0.00021917,4]
[365888102,1749973839934,-460.0,0.00021917,4]
[365888103,1749973839943,-1753.48,0.00021917,4]
[365888104,1749973839952,-460.0,0.00021917,4]
[365888105,1749973839961,-460.0,0.00021917,4]
[365888106,1749973839971,-460.0,0.00021917,4]
[365888107,1749973839980,-954.39,0.00021917,4]
[365888108,1749973839989,-460.0,0.00021917,4]
[365888109,1749973839999,-1616.78,0.00021917,4]
[365888110,1749973840008,-460.0,0.00021917,4]
[365888112,1749973840017,-652.4,0.00021917,4]
[365888113,1749973840027,-460.0,0.00021917,4]
[365888114,1749973840036,-460.96160819,0.00021917,4]
[365888115,1749973840046,-460.0,0.00021917,4]
[365888116,1749973840055,-895.46,0.00021917,4]
[365888117,1749973840065,-460.0,0.00021917,4]
[365888118,1749973840074,-2384.47,0.00021917,4]
[365888119,1749973840083,-500.0,0.00021918,2]
[365888120,1749973840093,-500.0,0.00021918,2]
[365888121,1749973840102,-310.11418773,0.00021918,2]
[365888122,1749973840112,-347.69715989,0.00022,2]
[365888125,1749973840122,-500.0,0.00022,2]
[365888127,1749973840131,-513.31206178,0.00022,2]
[365888129,1749973840141,-501.37703058,0.00022,2]
[365888131,1749973840150,-500.0,0.00022,2]
[365888133,1749973840161,-501.20390205,0.00022,2]
[365888135,1749973840171,-507.87382586,0.00022,2]
[365888137,1749973840181,-500.0,0.00022,2]
[365888139,1749973840191,-500.0,0.00022,2]
[365888141,1749973840201,-500.0,0.00022,2]
[365888143,1749973840211,-2157.10173815,0.00022038,6]
[365888145,1749973840221,-500.0,0.0002205,2]
[365888148,1749973840231,-500.0,0.0002205,2]
[365888151,1749973840240,-500.0,0.00022071,2]
[365888153,1749973840254,-500.0,0.00022071,2]
[365888155,1749973840263,-500.0,0.00022071,2]
[365888157,1749973840272,-500.0,0.00022071,2]
[365888159,1749973840281,-4283.9271961,0.00022091,2]
[365888161,1749973840293,-213.81095952,0.00022128,2]
[365888163,1749973840302,-299.33476204,0.00022154,2]
[365888166,1749973840311,-500.0,0.00022156,2]
[365888169,1749973840323,-504.10587241,0.00022156,2]
[365888172,1749973840332,-610.54846814,0.00022156,2]
[365888175,1749973840340,-511.02808622,0.00022156,2]
[365888177,1749973840350,-504.79687031,0.00022156,2]
[365888180,1749973840359,-845.25843836,0.00022166,2]
[365888183,1749973840368,-424.47602138,0.00022166,2]
[365888186,1749973840377,-160.0,0.00022166,2]
[365888189,1749973840387,-2157.10173815,0.00022176,6]
[365888192,1749973840397,-12535.62630729,0.00022185,2]
[365888195,1749973840406,-500.0,0.00022187,2]
[365888198,1749973840415,-513.09277418,0.00022187,2]
[365888201,1749973840424,-155.47771843,0.00022187,2]
[365888204,1749973840434,-370.1795694,0.00022187,2]
[365888207,1749973840443,-563.88233248,0.00022187,2]
[365888210,1749973840452,-501.72898597,0.00022187,2]
[365888213,1749973840462,-500.0,0.00022187,2]
[365888216,1749973840472,-500.0,0.00022187,2]
[365888219,1749973840481,-502.90224361,0.00022187,2]
[365888222,1749973840491,-3892.55,0.0002219,4]
[365888224,1749973840501,-1572.99,0.0002219,4]
[365888227,1749973840510,-460.0,0.0002219,4]
[365888230,1749973840520,-460.0,0.00022191,4]
[365888232,1749973840529,-460.0,0.00022191,4]
[365888234,1749973840539,-151.0,0.00022191,7]
[365888236,1749973840549,-593.73,0.00022191,4]
[365888238,1749973840558,-460.0,0.00022191,4]
[365888239,1749973840569,-491.34,0.00022191,4]
[365888240,1749973840578,-460.0,0.00022191,4]
[365888242,1749973840588,-791.29,0.00022191,4]
[365888243,1749973840598,-460.0,0.00022191,4]
[365888245,1749973840607,-460.0,0.00022191,4]
[365888247,1749973840617,-233.725266,0.00022191,7]
[365888250,1749973840627,-460.0,0.00022191,4]
[365888253,1749973840636,-460.0,0.00022191,4]
[365888256,1749973840645,-151.0,0.00022191,7]
[365888259,1749973840654,-460.0,0.00022191,4]
[365888262,1749973840664,-585.89,0.00022191,4]
[365888267,1749973840674,-191.16713,0.00022191,7]
[365888270,1749973840684,-191.16713,0.00022191,7]
[365888273,1749973840693,-460.0,0.00022191,4]
[365888276,1749973840702,-460.0,0.00022191,4]
[365888279,1749973840712,-233.29,0.00022191,4]
[365888282,1749973840721,-151.0,0.00022191,7]
[365888286,1749973840731,-460.0,0.00022191,4]
[365888290,1749973840740,-151.0,0.00022191,7]
[365888293,1749973840749,-460.0,0.00022191,4]
[365888295,1749973840758,-328.93121441,0.00022191,4]
[365888297,1749973840767,-460.0,0.00022191,2]
[365888300,1749973840776,-265.97687301,0.00022191,4]
[365888303,1749973840785,-460.0,0.00022191,4]
[365888306,1749973840794,-507.75874635,0.00022191,4]
[365888308,1749973840804,-151.0,0.00022191,7]
[365888310,1749973840820,-151.0,0.00022191,7]
[365888313,1749973840829,-460.0,0.00022191,4]
[365888315,1749973840838,-460.0,0.00022191,4]
[365888317,1749973840847,-226.20254385,0.00022191,4]
[365888318,1749973840856,-151.0,0.00022191,7]
[365888320,1749973840865,-551.73,0.00022191,4]
[365888323,1749973840875,-530.26,0.00022191,4]
[365888325,1749973840884,-154.858186,0.00022191,7]
[365888327,1749973840893,-151.0,0.00022191,7]
[365888329,1749973840902,-630.87,0.00022191,4]
[365888331,1749973840912,-151.0,0.00022191,7]
[365888333,1749973840921,-460.0,0.00022191,4]
[365888334,1749973840930,-151.0,0.00022191,7]
[365888337,1749973840940,-460.0,0.00022191,4]
[365888338,1749973840951,-151.0,0.00022191,7]
[365888341,1749973840960,-245.536284,0.00022191,7]
[365888343,1749973840970,-3017.86,0.00022191,4]
[365888344,1749973840979,-460.0,0.00022191,4]
[365888347,1749973840988,-682.21,0.00022191,4]
[365888349,1749973840997,-460.0,0.00022191,4]
[365888351,1749973841006,-380.0,0.00022191,4]
[365888353,1749973841016,-700.15,0.00022191,4]
[365888355,1749973841025,-626.93,0.00022191,4]
[365888357,1749973841034,-2703.63,0.00022191,4]
[365888359,1749973841043,-460.0,0.00022191,4]
[365888361,1749973841052,-3403.6,0.00022191,4]
[365888362,1749973841061,-460.0,0.00022191,4]
[365888365,1749973841071,-259.083111,0.00022191,7]
[365888366,1749973841081,-460.0,0.00022191,4]
[365888369,1749973841092,-460.0,0.00022191,4]
[365888371,1749973841102,-259.083111,0.00022191,7]
[365888372,1749973841111,-460.0,0.00022191,4]
[365888374,1749973841120,-409.279512,0.00022191,7]
[365888376,1749973841129,-151.0,0.00022191,7]
[365888379,1749973841139,-460.0,0.00022191,4]
[365888381,1749973841148,-460.0,0.00022191,4]
[365888383,1749973841158,-409.279512,0.00022191,7]
[365888385,1749973841168,-460.0,0.00022191,4]
[365888387,1749973841178,-1228.04,0.00022191,4]
[365888389,1749973841188,-460.0,0.00022191,4]
[365888391,1749973841197,-460.0,0.00022191,4]
[365888393,1749973841206,-1587.04,0.00022191,4]
[365888395,1749973841216,-460.0,0.00022191,4]
[365888397,1749973841225,-460.0,0.00022191,4]
[365888399,1749973841234,-850.24,0.00022191,4]
[365888401,1749973841245,-478.87,0.00022191,4]
[365888403,1749973841258,-581.61,0.00022191,4]
[365888405,1749973841267,-460.0,0.00022191,4]
[365888407,1749973841276,-460.0,0.00022191,4]
[365888409,1749973841287,-431.12056351,0.00022191,4]
[365888411,1749973841296,-1462.49,0.00022191,4]
[365888413,1749973841305,-460.32,0.00022191,4]
[365888415,1749973841314,-393.76425296,0.00022191,4]
[365888417,1749973841325,-460.0,0.00022191,4]
[365888419,1749973841336,-460.0,0.00022191,4]
[365888421,1749973841345,-460.0,0.00022191,4]
[365888423,1749973841354,-460.0,0.00022191,4]
[365888425,1749973841363,-460.0,0.00022191,4]
[365888427,1749973841373,-460.0,0.00022191,4]
[365888429,1749973841382,-460.0,0.00022191,4]
[365888431,1749973841391,-460.0,0.00022191,4]
[365888433,1749973841400,-1747.27,0.00022191,4]
[365888435,1749973841410,-460.0,0.00022191,4]
[365888437,1749973841419,-476.89,0.00022191,4]
[365888439,1749973841428,-460.0,0.00022191,4]
[365888441,1749973841437,-460.0,0.00022191,4]
[365888443,1749973841447,-1821.56,0.00022191,4]
[365888445,1749973841456,-460.0,0.00022191,4]
[365888447,1749973841466,-2297.17,0.00022191,4]
[365888449,1749973841477,-460.0,0.00022191,4]
[365888451,1749973841486,-739.49,0.00022191,4]
[365888453,1749973841495,-460.0,0.00022191,4]
[365888455,1749973841504,-460.0,0.00022191,4]
[365888457,1749973841513,-460.0,0.00022191,4]
[365888459,1749973841523,-460.0,0.00022191,4]
[365888461,1749973841532,-3588.19,0.00022191,4]
[365888463,1749973841541,-151.0,0.00022191,7]
[365888465,1749973841552,-460.0,0.00022191,4]
[365888467,1749973841561,-2293.8,0.00022191,4]
[365888469,1749973841571,-261.450518,0.00022191,7]
[365888471,1749973841579,-151.0,0.00022191,7]
[365888473,1749973841588,-1753.48,0.00022191,4]
[365888475,1749973841597,-250.0,0.00022191,4]
[365888477,1749973841606,-954.39,0.00022191,4]
[365888479,1749973841616,-151.0,0.00022191,7]
[365888481,1749973841625,-1616.78,0.00022191,4]
[365888483,1749973841634,-460.0,0.00022191,4]
[365888485,1749973841643,-652.4,0.00022191,4]
[365888487,1749973841652,-460.0,0.00022191,4]
[365888489,1749973841662,-697.383514,0.00022191,7]
[365888491,1749973841671,-895.46,0.00022191,4]
[365888493,1749973841681,-380.0,0.00022191,4]
[365888495,1749973841691,-697.383514,0.00022191,7]
[365888497,1749973841700,-151.0,0.0002221,7]
[365888499,1749973841711,-151.0,0.0002221,7]
[365888501,1749973841722,-212.131067,0.0002221,7]
[365888504,1749973841731,-212.131067,0.0002221,7]
[365888506,1749973841740,-742.09,0.00022267,7]
[365888508,1749973841749,-175.021273,0.00022267,7]
[365888510,1749973841758,-151.0,0.00022267,7]
[365888512,1749973841768,-151.0,0.00022267,7]
[365888514,1749973841777,-151.0,0.00022267,7]
[365888516,1749973841786,-168.0,0.00022267,2]
[365888517,1749973841795,-160.0,0.00022282,2]
[365888519,1749973841805,-151.0,0.00022298,7]
[365888522,1749973841814,-151.0,0.00022298,7]
[365888524,1749973841823,-155.270145,0.00022298,7]
[365888526,1749973841832,-2157.10173815,0.00022314,7]
[365888528,1749973841841,-500.0,0.00022356,2]
[365888529,1749973841851,-742.09,0.00022367,7]
[365888532,1749973841861,-207.4,0.00022428,2]
[365888533,1749973841871,-1760.12789081,0.00022428,2]
[365888535,1749973841880,-500.0,0.00022428,2]
[365888537,1749973841889,-151.0,0.00022428,2]
[365888539,1749973841899,-1688.0,0.00022428,2]
[365888542,1749973841909,-500.0,0.00022428,2]
[365888544,1749973841919,-151.0,0.00022428,2]
[365888546,1749973841928,-500.0,0.00022428,2]
[365888548,1749973841937,-151.0,0.00022428,2]
[365888550,1749973841946,-591.10451232,0.00022428,2]
[365888552,1749973841956,-151.0,0.00022428,2]
[365888554,1749973841966,-151.0,0.00022428,2]
[365888556,1749973841975,-258.210803,0.00022428,2]
[365888558,1749973841985,-2157.10173815,0.00022452,7]
[365888560,1749973841994,-151.0,0.0002246,7]
[365888562,1749973842005,-151.0,0.0002246,7]
[365888564,1749973842015,-151.0,0.0002246,7]
[365888566,1749973842024,-16363.26975198,0.00022464,2]
[365888568,1749973842034,-30298.3706013,0.00022464,2]
[365888570,1749973842043,-151.0,0.00022464,7]
[365888572,1749973842053,-151.0,0.00022464,7]
[365888574,1749973842063,-154.768265,0.00022464,7]
[365888576,1749973842073,-153.214995,0.00022464,7]
[365888578,1749973842082,-151.0,0.00022464,7]
[365888580,1749973842091,-151.0,0.00022464,7]
[365888582,1749973842101,-151.0,0.00022464,7]
[365888584,1749973842110,-151.0,0.00022464,7]
[365888586,1749973842119,-151.0,0.00022464,7]
[365888588,1749973842129,-151.0,0.00022464,7]
[365888590,1749973842138,-233.725266,0.00022464,7]
[365888592,1749973842147,-151.0,0.00022464,7]
[365888594,1749973842157,-151.0,0.00022464,7]
[365888596,1749973842166,-151.0,0.00022464,7]
[365888598,1749973842175,-191.16713,0.00022464,7]
[365888600,1749973842185,-191.16713,0.00022464,7]
[365888602,1749973842194,-151.0,0.00022464,7]
[365888604,1749973842203,-163.632209,0.00022464,7]
[365888606,1749973842213,-12535.62630729,0.00022464,7]
[365888608,1749973842222,-3892.55,0.00022464,4]
[365888610,1749973842234,-151.0,0.00022464,7]
[365888612,1749973842244,-151.0,0.00022464,7]
[365888614,1749973842257,-1572.99,0.00022464,4]
[365888616,1749973842266,-460.0,0.00022464,4]
[365888618,1749973842276,-259.083111,0.00022464,7]
[365888621,1749973842287,-259.083111,0.00022464,7]
[365888622,1749973842297,-409.279512,0.00022464,7]
[365888625,1749973842307,-151.0,0.00022464,7]
[365888627,1749973842317,-409.279512,0.00022464,7]
[365888629,1749973842327,-697.383514,0.00022464,7]
[365888631,1749973842336,-230.0,0.00022465,4]
[365888633,1749973842345,-154.177358,0.00022465,7]
[365888635,1749973842354,-151.0,0.00022465,7]
[365888637,1749973842364,-151.0,0.00022465,7]
[365888639,1749973842373,-151.0,0.00022465,7]
[365888641,1749973842382,-151.0,0.00022465,7]
[365888643,1749973842391,-399.173129,0.00022465,2]
[365888645,1749973842401,-210.785039,0.00022465,7]
[365888647,1749973842410,-460.0,0.00022465,4]
[365888649,1749973842420,-593.73,0.00022465,4]
[365888651,1749973842429,-166.14952116,0.00022465,4]
[365888653,1749973842438,-491.34,0.00022465,4]
[365888655,1749973842448,-460.0,0.00022465,4]
[365888657,1749973842457,-791.29,0.00022465,4]
[365888659,1749973842467,-467.82904102,0.00022465,4]
[365888661,1749973842476,-233.725266,0.00022465,7]
[365888663,1749973842486,-233.725266,0.00022465,7]
[365888665,1749973842495,-360.0,0.00022465,4]
[365888667,1749973842504,-460.0,0.00022465,4]
[365888669,1749973842513,-151.0,0.00022465,7]
[365888671,1749973842522,-460.0,0.00022465,4]
[365888673,1749973842531,-151.0,0.00022465,7]
[365888675,1749973842540,-151.0,0.00022465,7]
[365888677,1749973842549,-585.89,0.00022465,4]
[365888679,1749973842558,-151.0,0.00022465,7]
[365888681,1749973842568,-151.0,0.00022465,7]
[365888683,1749973842576,-191.16713,0.00022465,7]
[365888685,1749973842585,-191.16713,0.00022465,7]
[365888687,1749973842595,-151.0,0.00022465,7]
[365888689,1749973842603,-151.0,0.00022465,7]
[365888691,1749973842612,-327.71417768,0.00022465,4]
[365888693,1749973842622,-460.0,0.00022465,4]
[365888695,1749973842631,-151.0,0.00022465,7]
[365888697,1749973842640,-207.2588249,0.00022465,4]
[365888699,1749973842649,-460.0,0.00022465,2]
[365888701,1749973842658,-460.0,0.00022465,4]
[365888703,1749973842667,-151.0,0.00022465,7]
[365888705,1749973842676,-151.0,0.00022465,7]
[365888707,1749973842685,-151.0,0.00022465,7]
[365888709,1749973842694,-212.131067,0.00022465,7]
[365888711,1749973842703,-212.131067,0.00022465,7]
[365888713,1749973842714,-151.0,0.00022465,7]
[365888715,1749973842723,-151.0,0.00022465,7]
[365888717,1749973842732,-263.65779169,0.00022465,4]
[365888719,1749973842741,-212.131067,0.00022465,7]
[365888721,1749973842750,-212.131067,0.00022465,7]
[365888723,1749973842759,-460.0,0.00022465,4]
[365888725,1749973842768,-151.0,0.00022465,7]
[365888727,1749973842777,-153.134164,0.00022465,7]
[365888729,1749973842786,-551.73,0.00022465,4]
[365888731,1749973842796,-530.26,0.00022465,4]
[365888733,1749973842805,-151.0,0.00022465,7]
[365888734,1749973842815,-184.413066,0.00022465,7]
[365888736,1749973842824,-630.87,0.00022465,4]
[365888739,1749973842835,-151.0,0.00022465,7]